bitfinex-derivatives/quotes_ETHF0:USTF0_20260201
["timestamp","ask_amount","ask_price","bid_price","bid_amount"]
[1769962926556,0.0034592,2288.5,2286.2,0.00505495]
[1769962926557,0.21881,2287.3,2286.2,0.00505495]
[1769962926756,0.21881,2287.3,2286.3,2.56274213]
[1769962927062,0.21873,2288.0,2286.9,10.14148469]
[1769962927264,0.21873,2288.0,2286.9,7.57874256]
[1769962927764,0.21873,2288.0,2286.2,0.00505495]
[1769962927765,0.0034592,2288.5,2287.4,7.58811039]
[1769962928261,0.0034592,2288.5,2287.7,7.58811039]
[1769962928462,0.0034592,2288.5,2287.8,7.58811039]
[1769962928662,0.0034592,2288.5,2288.3,7.58811039]
[1769962928859,0.21867,2288.7,2288.3,7.59213394]
[1769962929060,0.21862,2289.3,2288.6,2.56274213]
[1769962929258,3.935,2290.2,2289.0,9.93223252]
[1769962929463,3.935,2290.2,2288.4,7.58811039]
[1769962929660,0.21859,2289.5,2288.4,7.58811039]
[1769962929857,0.00452629,2289.5,2288.4,7.58811039]
[1769962930052,0.00452629,2289.5,2288.7,7.58811039]
[1769962930355,3.935,2290.9,2289.3,7.57981886]
[1769962930556,3.95158305,2290.9,2289.3,7.57981886]
[1769962930861,0.01658305,2290.8,2289.3,7.57981886]
[1769962931061,0.21852,2290.3,2289.6,7.57981886]
[1769962931464,0.21854,2290.0,2288.8,7.57981886]
[1769962931663,0.00366007,2290.3,2289.7,5.74346886]
[1769962931860,0.21857,2289.8,2288.3,0.00402355]
[1769962932066,0.00366007,2290.3,2288.3,3.53250248]
[1769962932262,0.00366007,2290.3,2288.8,3.52847893]
[1769962932465,0.21846,2290.9,2289.3,3.52847893]
[1769962932960,1.97192571,2292.0,2290.2,2.12556213]
[1769962932961,0.2184,2291.6,2290.2,2.12556213]
[1769962933263,0.2184,2291.6,2290.0,3.935]
[1769962933474,0.21826,2293.0,2291.2,2.12556213]
[1769962933668,0.21828,2292.8,2290.9,7.03227698]
[1769962933974,1.97582784,2293.7,2291.4,7.03227698]
[1769962934160,0.21827,2292.9,2291.5,7.03227698]
[1769962934370,0.00531582,2292.9,2291.7,7.03227698]
[1769962934670,0.00531582,2292.9,2292.0,7.03227698]
[1769962934875,0.00531582,2292.9,2292.2,7.03227698]
[1769962935172,2.19589165,2293.9,2292.2,2.12556213]
[1769962935370,0.21824,2293.2,2291.8,7.03227698]
[1769962935769,0.21824,2293.2,2292.3,7.03227698]
[1769962935966,0.22342606,2293.2,2292.3,9.15783911]
[1769962936168,0.22342606,2293.2,2292.4,7.03227698]
[1769962936464,0.22342606,2293.2,2292.4,9.15783911]
[1769962936669,0.22342606,2293.2,2292.5,2.12556213]
[1769962936868,0.22342606,2293.2,2292.4,7.03227698]
[1769962937072,0.22342606,2293.2,2292.4,9.15783911]
[1769962937468,0.22342606,2293.2,2291.7,0.00508964]
[1769962937469,2.23729446,2293.2,2291.7,0.00508964]
[1769962937677,0.21832,2292.3,2291.7,0.00508964]
[1769962938062,0.21839,2291.6,2290.4,7.03227698]
[1769962938269,2.14331401,2292.3,2290.4,7.03227698]
[1769962938469,0.21841,2291.5,2290.4,7.03227698]
[1769962938669,2.14331401,2292.2,2290.4,7.03227698]
[1769962938871,0.2184,2291.5,2290.5,7.03227698]
[1769962939180,0.22391329,2291.5,2290.5,7.03788788]
[1769962939372,0.22391329,2291.5,2290.6,9.15783911]
[1769962939672,0.22391329,2291.5,2290.6,7.03227698]
[1769962939876,0.22391329,2291.5,2290.7,9.15783911]
[1769962940073,0.22391329,2291.5,2290.7,7.03227698]
[1769962940477,0.22391329,2291.5,2290.7,9.15783911]
[1769962941378,0.21846,2290.9,2290.3,7.03227698]
[1769962941575,0.22391329,2291.5,2290.3,7.03227698]
[1769962941776,0.22391329,2291.5,2290.6,7.03227698]
[1769962942072,0.21841,2291.4,2290.6,7.03227698]
[1769962942278,0.2184,2291.5,2291.0,7.03227698]
[1769962942579,0.2184,2291.5,2291.1,9.15783911]
[1769962942776,0.2184,2291.5,2290.6,2.12556213]
[1769962942976,1.91529928,2292.8,2291.2,7.03227698]
[1769962943179,0.21842,2291.4,2290.0,3.933]
[1769962943577,0.21836,2291.9,2290.9,2.12556213]
[1769962943777,0.21836,2291.9,2290.2,2.12556213]
[1769962944081,0.21846,2290.9,2290.5,2.12556213]
[1769962944287,0.21846,2290.9,2288.9,3.932]
[1769962944288,0.21848,2290.7,2288.9,3.932]
[1769962944482,0.21849,2290.6,2289.7,2.12556213]
[1769962944982,0.21849,2290.6,2290.2,2.12556213]
[1769962945182,0.00385825,2290.9,2289.9,7.03227698]
[1769962945385,0.21849,2290.6,2289.9,7.03670003]
[1769962945578,0.2185,2290.5,2290.2,7.03227698]
[1769962945980,0.00385825,2290.9,2290.4,9.15783911]
[1769962946185,0.00385825,2290.9,2290.1,2.12556213]
[1769962946385,0.00385825,2290.9,2290.1,9.15783911]
[1769962946588,0.00385825,2290.9,2290.2,2.12556213]
[1769962947184,0.00385825,2290.9,2290.4,7.03227698]
[1769962947481,0.00385825,2290.9,2290.3,2.12556213]
[1769962947482,0.2185,2290.5,2290.2,7.03227698]
[1769962947686,0.00385825,2290.9,2290.2,9.15783911]
[1769962947887,0.00385825,2290.9,2290.2,7.03227698]
[1769962948482,0.00385825,2290.9,2289.9,0.00442305]
[1769962948483,0.21852,2290.3,2289.9,3.05e-06]
[1769962948682,0.22231825,2290.9,2289.9,7.03228003]
[1769962948877,0.22231825,2290.9,2290.4,7.03227698]
[1769962949076,0.21847,2290.8,2290.4,7.03227698]
[1769962949282,0.21847,2290.8,2289.9,3.05e-06]
[1769962949283,6.94388016,2292.2,2290.8,2.12556213]
[1769962949578,6.94388016,2292.2,2290.5,7.03227698]
[1769962949579,0.21844,2291.2,2290.5,7.03227698]
[1769962949779,38.61229478,2292.8,2290.6,7.03227698]
[1769962949984,0.21834,2292.1,2290.9,2.12556213]
[1769962950186,0.21834,2292.1,2291.0,7.03227698]
[1769962950486,3.01948413,2293.2,2291.8,7.03227698]
[1769962950487,0.2183,2292.6,2291.8,7.03227698]
[1769962950890,0.2183,2292.6,2292.3,7.03227698]
[1769962951094,6.95148413,2293.6,2292.3,7.03227698]
[1769962951394,0.00454744,2293.6,2293.1,9.15783911]
[1769962951686,0.21811,2294.6,2293.6,7.03227698]
[1769962952081,0.21811,2294.6,2292.9,1.99809784]
[1769962952082,0.21811,2294.6,2293.9,7.03227698]
[1769962952495,0.22263292,2294.6,2293.9,9.03037482]
[1769962952684,0.21811,2294.5,2293.6,7.03227698]
[1769962952884,38.61229478,2296.0,2294.4,7.03227698]
[1769962953084,3.00949263,2296.1,2294.4,7.03227698]
[1769962953289,0.21804,2295.3,2294.4,7.03227698]
[1769962953785,0.21806,2295.1,2294.4,7.03227698]
[1769962953980,0.21806,2295.1,2294.4,7.03592286]
[1769962953981,0.22267569,2295.1,2294.4,7.03592286]
[1769962954184,0.00461569,2295.1,2293.8,2.076]
[1769962954394,0.21812,2294.5,2293.8,2.076]
[1769962954594,1.47865458,2294.7,2293.8,0.66713514]
[1769962954801,0.00461569,2295.1,2293.8,0.66713514]
[1769962954802,0.21812,2294.5,2293.8,0.66713514]
[1769962955087,0.21812,2294.5,2293.8,7.69941212]
[1769962955298,0.21812,2294.5,2293.8,7.70373565]
[1769962958199,1.62373034,2295.0,2293.8,0.67145867]
[1769962958398,0.21815,2294.2,2293.4,7.19822304]
[1769962958794,0.21817,2293.9,2293.4,7.19822304]
[1769962959299,0.21823,2293.3,2292.2,7.19822304]
[1769962959498,0.22188108,2293.3,2292.2,7.20150072]
[1769962960496,0.21818,2293.9,2292.2,7.20150072]
[1769962960699,1.16568892,2294.1,2292.2,7.20150072]
[1769962960905,0.21821,2293.5,2292.2,7.20150072]
[1769962961403,0.21822,2293.4,2292.2,7.20150072]
[1769962961611,0.00426235,2293.5,2292.2,7.20150072]
[1769962962701,0.21823,2293.3,2292.2,7.20150072]
[1769962962907,38.61229478,2294.7,2292.2,7.20150072]
[1769962963108,0.21819,2293.8,2292.2,7.20150072]
[1769962964003,0.2237085,2293.8,2292.2,7.20150072]
[1769962964207,0.0055185,2293.8,2292.2,7.20150072]
[1769962964414,5.52915454,2294.9,2292.2,7.20150072]
[1769962964613,1.81116139,2294.5,2292.2,7.20150072]
[1769962964809,0.21825,2293.1,2292.2,7.20150072]
[1769962965207,1.81020815,2294.2,2292.2,7.20150072]
[1769962965410,0.00317751,2293.1,2292.2,7.20150072]
[1769962965612,0.2183,2292.6,2292.2,7.20150072]
[1769962965811,0.00317751,2293.1,2292.2,7.20150072]
[1769962966011,0.21825,2293.1,2292.2,7.20150072]
[1769962966412,3.928,2294.1,2292.2,7.20150072]
[1769962966714,2.02851815,2294.3,2292.2,7.20150072]
[1769962966910,38.61229478,2295.4,2293.8,7.41522053]
[1769962967111,0.21808,2294.9,2293.8,7.41522053]
[1769962967311,2.68770372,2295.8,2293.8,7.41522053]
[1769962967312,0.21809,2294.8,2293.8,7.41522053]
[1769962967915,0.22374252,2294.8,2293.8,7.41522053]
[1769962968312,0.2181,2294.7,2293.8,7.41522053]
[1769962968511,0.21805,2295.2,2293.8,7.41522053]
[1769962969518,0.22257217,2295.2,2293.8,7.41522053]
[1769962969717,0.21806,2295.1,2293.8,7.41522053]
[1769962970109,0.00452217,2295.2,2293.8,7.41522053]
[1769962970618,0.21803,2295.4,2293.8,7.41522053]
[1769962970919,0.21805,2295.2,2293.8,7.41522053]
[1769962971416,2.93365521,2295.8,2293.8,7.41522053]
[1769962971621,3.63883367,2295.8,2293.8,6.93088053]
[1769962971810,0.21809,2294.8,2293.8,6.93088053]
[1769962972210,3.63883367,2295.8,2293.8,6.93088053]
[1769962972412,0.21809,2294.8,2293.8,6.93088053]
[1769962972612,0.21803,2295.4,2293.8,6.93088053]
[1769962972923,0.21804,2295.3,2293.8,6.93088053]
[1769962973519,0.21805,2295.2,2293.8,6.93088053]
[1769962974812,0.00270846,2295.8,2293.8,6.93088053]
[1769962975119,0.21805,2295.2,2293.8,6.93088053]
[1769962976222,0.00270846,2295.8,2294.0,7.41522053]
[1769962976424,0.00270846,2295.8,2294.0,7.41869778]
[1769962976724,0.37647397,2296.8,2294.5,7.41522053]
[1769962976926,0.37647397,2296.8,2294.7,7.41522053]
[1769962977226,0.37647397,2296.8,2294.8,7.41522053]
[1769962977423,3.926,2297.2,2294.8,7.41522053]
[1769962977621,3.926,2297.2,2295.0,7.41522053]
[1769962977622,0.21791,2296.7,2295.0,7.41522053]
[1769962977816,3.926,2297.2,2295.0,7.41522053]
[1769962978320,0.00352108,2297.1,2295.0,7.41522053]
[1769962978827,0.21793,2296.4,2295.0,7.41522053]
[1769962979028,0.21798,2295.9,2295.0,7.41522053]
[1769962979431,0.22150108,2295.9,2295.0,7.41522053]
[1769962979622,0.21798,2295.9,2295.0,7.41522053]
[1769962979823,0.22150108,2295.9,2295.0,7.41522053]
[1769962980423,5.14075402,2296.8,2295.0,7.41522053]
[1769962980625,7.75912024,2297.5,2295.1,7.41522053]
[1769962980626,38.61229478,2297.5,2295.1,7.41522053]
[1769962980825,0.21794,2296.4,2295.2,7.41522053]
[1769962981025,5.35811557,2297.1,2295.2,7.41522053]
[1769962981225,0.21794,2296.4,2295.2,7.41522053]
[1769962981422,0.21794,2296.4,2294.9,2.56953335]
[1769962981423,5.35811557,2297.5,2295.4,7.41522053]
[1769962981625,0.21787,2297.1,2295.6,7.41522053]
[1769962981821,38.61229478,2298.4,2295.9,3.52847893]
[1769962982026,5.79392557,2298.3,2296.1,7.41522053]
[1769962982235,0.21785,2297.4,2296.1,7.41522053]
[1769962982425,0.21788,2297.0,2296.1,7.41522053]
[1769962982923,0.21783,2297.6,2296.1,7.41522053]
[1769962983126,0.21776,2298.3,2296.3,7.41522053]
[1769962983326,0.21776,2298.3,2296.5,9.98475388]
[1769962983521,0.21781,2297.7,2296.7,7.41522053]
[1769962983725,0.21783,2297.5,2296.7,7.41522053]
[1769962983920,5.88222072,2298.5,2296.7,7.41522053]
[1769962984121,0.21783,2297.6,2296.7,7.41522053]
[1769962984532,0.21778,2298.1,2296.7,7.41522053]
[1769962984728,0.21772,2298.7,2296.9,7.41522053]
[1769962984932,0.21775,2298.3,2296.9,7.41522053]
[1769962985231,0.34368515,2298.9,2296.9,7.41522053]
[1769962985623,0.21764,2299.5,2297.7,7.41522053]
[1769962985829,6.00936416,2300.6,2297.9,7.41522053]
[1769962986025,0.21759,2300.0,2298.1,7.41522053]
[1769962986227,41.76629478,2301.0,2298.0,3.923]
[1769962986228,6.27646992,2301.5,2298.8,7.41522053]
[1769962986525,38.61229478,2301.8,2298.4,3.49120579]
[1769962986526,6.27646992,2301.2,2299.0,7.41522053]
[1769962986724,0.21758,2300.1,2299.0,7.41522053]
[1769962986927,0.21763,2299.7,2299.0,7.41522053]
[1769962987234,0.21757,2300.3,2299.0,7.41522053]
[1769962987435,0.21765,2299.5,2298.6,7.08761162]
[1769962987931,0.21765,2299.5,2298.2,7.08761162]
[1769962987932,0.21769,2299.0,2298.2,7.08761162]
[1769962988529,5.08636322,2300.8,2298.2,7.08761162]
[1769962988530,0.21761,2299.8,2298.2,7.08761162]
[1769962988730,0.21761,2299.8,2298.2,11.00961162]
[1769962988933,0.21764,2299.5,2298.3,7.08761162]
[1769962989128,0.21766,2299.3,2298.3,7.08761162]
[1769962989329,0.21767,2299.2,2298.3,7.08761162]
[1769962989933,6.26726698,2299.4,2297.9,7.08761162]
[1769962990133,0.21767,2299.2,2297.9,7.08761162]
[1769962990936,0.21772,2298.7,2297.7,0.00461818]
[1769962991538,0.21772,2298.7,2297.7,7.0922298]
[1769962992341,6.20450665,2298.8,2297.7,0.00461818]
[1769962992635,0.21774,2298.5,2297.3,7.08761162]
[1769962993235,0.21767,2299.3,2297.3,7.08761162]
[1769962993433,0.22172918,2299.3,2297.3,7.09203956]
[1769962994235,0.21767,2299.2,2297.3,7.09203956]
[1769962994438,0.21768,2299.1,2297.3,7.09203956]
[1769962994638,0.00405918,2299.3,2297.3,7.09203956]
[1769962994835,0.21756,2300.4,2298.2,7.08761162]
[1769962995033,0.21756,2300.4,2298.4,7.08761162]
[1769962995234,0.21756,2300.4,2298.5,2.555]
[1769962995440,0.2175,2301.0,2298.8,7.08761162]
[1769962995739,6.17893684,2301.4,2298.8,7.08761162]
[1769962996134,0.21754,2300.6,2298.8,7.08761162]
[1769962996638,6.36771986,2303.0,2299.3,7.08761162]
[1769962996935,0.2173,2303.1,2300.4,7.08761162]
[1769962997240,0.2173,2303.1,2300.0,3.49120579]
[1769962997241,6.36771986,2303.4,2300.8,7.08761162]
[1769962997431,38.61229478,2304.6,2300.9,7.08761162]
[1769962997638,6.36771986,2304.9,2301.7,7.08761162]
[1769962997830,0.21719,2304.3,2301.9,7.08761162]
[1769962998035,0.21719,2304.3,2301.9,11.45261162]
[1769962998236,0.21711,2305.1,2302.0,7.08761162]
[1769962998437,6.30723697,2306.0,2302.7,7.08761162]
[1769962998635,6.30723697,2305.9,2302.9,7.08761162]
[1769962998835,6.30723697,2305.4,2303.1,7.08761162]
[1769962999041,0.21717,2304.5,2303.1,7.08761162]
[1769962999335,0.21703,2306.0,2303.4,7.30487162]
[1769962999537,0.21707,2305.6,2303.4,7.09308774]
[1769962999734,0.21708,2305.4,2303.4,7.09308774]
[1769963000137,6.64736585,2307.1,2304.1,4.365]
[1769963000342,0.21699,2306.4,2304.4,7.08761162]
[1769963000737,0.01012896,2308.9,2304.4,7.08761162]
[1769963000738,6.43043585,2307.5,2304.4,7.08761162]
[1769963001039,4.02139759,2308.7,2305.8,7.08761162]
[1769963001234,0.10439759,2308.7,2306.2,7.30461162]
[1769963001442,0.10439759,2308.7,2306.6,7.08761162]
[1769963001632,0.01012896,2308.9,2306.6,7.08761162]
[1769963002334,0.21679,2308.6,2306.6,7.08761162]
[1769963002637,0.01012896,2308.9,2306.6,7.08761162]
[1769963002833,0.01012896,2308.9,2307.0,7.08761162]
[1769963003036,0.01012896,2308.9,2307.2,7.08761162]
[1769963004249,0.21663,2310.2,2307.2,7.08761162]
[1769963004545,6.2924462,2310.4,2307.8,7.08761162]
[1769963004837,0.21662,2310.3,2308.0,7.08761162]
[1769963005039,0.12450602,2310.0,2308.0,7.08761162]
[1769963005240,6.16794018,2309.4,2308.0,7.08761162]
[1769963005547,6.35614569,2308.9,2306.3,3.911]
[1769963005749,6.35614569,2308.4,2306.3,3.911]
[1769963006045,6.2919739,2307.8,2306.3,3.911]
[1769963006245,0.21689,2307.5,2305.5,5.327]
[1769963006437,6.2919739,2307.4,2305.5,0.00427681]
[1769963006747,0.21692,2307.1,2305.5,0.00427681]
[1769963007047,0.21694,2307.0,2305.5,0.00427681]
[1769963007246,0.12450602,2306.9,2305.5,0.00427681]
[1769963007545,0.00464468,2307.5,2305.6,7.08761162]
[1769963007744,6.29661858,2307.5,2305.6,7.08761162]
[1769963008648,6.32500329,2307.3,2305.2,7.08761162]
[1769963008942,0.21696,2306.7,2305.2,7.08761162]
[1769963009146,0.21696,2306.7,2305.4,7.08761162]
[1769963009344,0.00464468,2307.5,2305.4,7.08761162]
[1769963009552,0.00464468,2307.5,2305.6,7.30467162]
[1769963010061,0.21677,2308.8,2306.0,7.08761162]
[1769963010240,0.21677,2308.8,2306.2,7.08761162]
[1769963010547,6.32964797,2309.2,2306.3,7.08761162]
[1769963010743,3.908,2309.4,2306.3,7.08761162]
[1769963010744,5.99990382,2308.4,2306.3,7.09188843]
[1769963011048,0.21688,2307.6,2306.3,7.09188843]
[1769963011452,0.12450602,2307.5,2306.3,7.09188843]
[1769963011940,0.12450602,2307.3,2306.3,7.09188843]
[1769963012147,0.12450602,2307.4,2306.3,7.09188843]
[1769963012346,0.12450602,2307.3,2306.3,7.09188843]
[1769963012542,0.21687,2307.7,2306.5,7.08761162]
[1769963012748,0.00377083,2308.4,2306.7,7.08761162]
[1769963012943,0.00377083,2308.4,2306.8,7.08761162]
[1769963013242,0.21688,2307.6,2306.8,7.09188843]
[1769963013638,0.21688,2307.6,2305.6,3.907]
[1769963013639,0.21692,2307.2,2305.7,7.08761162]
[1769963013843,0.21686,2307.8,2305.7,7.09188843]
[1769963014043,0.2169,2307.4,2305.7,7.09188843]
[1769963014244,0.21683,2308.1,2305.7,7.09188843]
[1769963014447,6.01355044,2308.4,2305.7,7.09188843]
[1769963014638,5.88904442,2308.4,2305.7,7.09188843]
[1769963014844,0.21691,2307.3,2305.7,7.09188843]
[1769963015044,0.21693,2307.1,2305.7,7.09188843]
[1769963015544,0.21686,2307.8,2305.7,7.09188843]
[1769963015750,0.21689,2307.5,2305.7,7.09188843]
[1769963016143,0.21693,2307.1,2305.7,7.09188843]
[1769963016445,0.21694,2307.0,2305.7,7.09188843]
[1769963016747,5.98754091,2307.2,2305.7,7.09188843]
[1769963016950,0.21695,2306.8,2305.7,7.09188843]
[1769963017147,0.12450602,2307.1,2305.7,7.08761162]
[1769963017351,6.07994489,2307.3,2305.7,7.09188843]
[1769963017650,0.00377083,2308.4,2305.7,7.09188843]
[1769963017651,0.21691,2307.2,2305.7,7.09188843]
[1769963017946,0.21692,2307.1,2305.7,7.09188843]
[1769963018149,0.21693,2307.0,2305.7,7.09188843]
[1769963018554,5.82572917,2308.2,2305.7,7.09188843]
[1769963018851,0.00377083,2308.4,2305.7,7.09188843]
[1769963018852,0.21693,2307.1,2305.7,7.09188843]
[1769963019246,5.82572917,2307.7,2306.2,6.83493425]
[1769963019451,0.21694,2307.0,2306.2,6.83493425]
[1769963019647,0.20826033,2306.7,2306.2,6.83921106]
[1769963019855,0.2116449,2306.7,2306.2,6.83921106]
[1769963020148,0.21694,2307.0,2306.2,6.83921106]
[1769963020345,6.14555351,2307.2,2305.7,6.83493425]
[1769963020550,0.21696,2306.7,2305.7,6.83921106]
[1769963020953,0.21785224,2306.7,2305.7,6.83921106]
[1769963021746,0.21701,2306.2,2305.4,0.00420613]
[1769963021948,0.21701,2306.2,2305.5,6.83921106]
[1769963022155,0.2169,2307.4,2305.6,6.83493425]
[1769963022350,6.17377481,2307.9,2305.6,6.83493425]
[1769963022549,6.17377481,2307.9,2305.8,6.83493425]
[1769963022750,6.17466705,2309.8,2305.8,6.83493425]
[1769963023051,6.17466705,2308.4,2306.0,6.83493425]
[1769963023256,0.21686,2307.8,2306.0,6.83493425]
[1769963023652,0.21686,2307.8,2306.2,6.83493425]
[1769963023853,0.21686,2307.8,2306.4,6.83493425]
[1769963024353,0.21686,2307.8,2306.3,3.905]
[1769963024354,0.21687,2307.7,2306.6,6.83493425]
[1769963024755,0.21687,2307.7,2306.8,6.83493425]
[1769963024952,0.2168,2308.4,2306.8,6.83493425]
[1769963025257,6.14567904,2308.8,2307.0,7.20475857]
[1769963025752,5.08636322,2309.8,2306.3,3.905]
[1769963025753,0.21678,2308.7,2307.2,7.20475857]
[1769963026056,6.14567904,2309.3,2307.2,7.20905765]
[1769963026253,6.14567904,2309.3,2307.4,7.20475857]
[1769963026552,38.61229478,2309.7,2307.4,7.20475857]
[1769963026553,6.14457599,2309.0,2307.4,7.20475857]
[1769963026857,0.21682,2308.3,2307.4,7.20475857]
[1769963027350,0.21682,2308.3,2307.5,0.00427681]
[1769963027553,0.21682,2308.2,2307.5,0.00427681]
[1769963027750,38.61229478,2309.1,2307.5,7.20903538]
[1769963027949,0.21675,2308.9,2307.7,7.20475857]
[1769963028255,0.21671,2309.4,2307.7,7.20475857]
[1769963028454,6.14444044,2309.9,2307.9,7.20475857]
[1769963028653,0.21672,2309.3,2307.9,7.20475857]
[1769963028854,0.21673,2309.2,2308.1,7.20475857]
[1769963029559,0.21673,2309.2,2308.3,7.20475857]
[1769963030254,0.21673,2309.2,2308.5,7.20475857]
[1769963030756,0.21673,2309.2,2308.6,0.00427681]
[1769963030956,0.21673,2309.2,2308.6,7.20903538]
[1769963031356,0.21678,2308.6,2307.7,7.20475857]
[1769963031552,38.61229478,2310.0,2307.7,7.20475857]
[1769963031752,6.139739,2309.6,2307.9,7.20475857]
[1769963032154,0.21672,2309.3,2308.1,7.20475857]
[1769963032360,0.21661,2310.5,2308.5,7.20475857]
[1769963032558,0.01140567,2310.9,2308.7,9.77429192]
[1769963032759,6.4292987,2311.7,2308.6,3.71752572]
[1769963032760,0.2165,2311.6,2309.4,9.77429192]
[1769963032952,6.14891946,2312.2,2309.8,7.20475857]
[1769963033262,0.21651,2311.6,2309.8,7.20475857]
[1769963033453,6.14891946,2312.7,2310.0,7.20475857]
[1769963033758,0.21641,2312.6,2310.4,2.5380256]
[1769963033970,0.21641,2312.6,2310.6,7.20475857]
[1769963034263,0.21641,2312.6,2310.8,7.20475857]
[1769963034766,0.10439759,2313.6,2311.0,7.20475857]
[1769963034956,38.61229478,2314.6,2311.7,7.20475857]
[1769963035152,0.2162,2314.9,2312.5,7.20475857]
[1769963035355,0.21609,2316.0,2313.4,7.20475857]
[1769963035661,38.61229478,2317.2,2313.4,7.20475857]
[1769963035662,0.21612,2315.7,2313.6,7.20475857]
[1769963035959,38.61229478,2317.4,2313.8,7.20475857]
[1769963036157,38.61229478,2317.4,2313.5,9.249]
[1769963036158,6.15740785,2317.4,2314.3,7.20475857]
[1769963036363,0.21593,2317.7,2314.5,7.20475857]
[1769963036564,0.21593,2317.7,2314.8,7.20475857]
[1769963036757,0.21593,2317.7,2315.0,7.20475857]
[1769963036958,0.21594,2317.6,2315.1,5.377]
[1769963037260,6.45770833,2318.7,2315.2,7.20475857]
[1769963037462,6.24617942,2319.6,2316.5,7.20475857]
[1769963037759,6.24186833,2319.4,2316.7,7.20475857]
[1769963037959,6.24186833,2319.4,2316.9,7.20475857]
[1769963038261,0.21579,2319.2,2317.1,7.20475857]
[1769963038461,0.21579,2319.2,2317.3,7.20475857]
[1769963038654,0.21579,2319.2,2317.5,7.20475857]
[1769963038860,0.21585,2318.6,2317.5,7.20903538]
[1769963039056,0.21589,2318.2,2317.1,7.20475857]
[1769963039259,6.36585709,2319.1,2317.1,7.20475857]
[1769963039456,0.21583,2318.9,2317.1,7.20475857]
[1769963039657,0.10439759,2318.6,2317.1,7.20475857]
[1769963039855,6.36585709,2318.6,2317.1,7.20475857]
[1769963040064,6.36585709,2318.6,2316.9,0.00497456]
[1769963040065,0.10439759,2317.2,2316.9,4.56e-06]
[1769963040259,6.46585011,2317.3,2315.5,7.20475857]
[1769963040464,3.897,2318.1,2315.5,7.20475857]
[1769963040465,0.21603,2316.7,2315.5,7.20475857]
[1769963040669,0.21603,2316.7,2314.9,7.20475857]
[1769963040962,0.21603,2316.7,2314.8,3.896]
[1769963040963,0.2161,2316.0,2314.8,11.10075857]
[1769963041156,0.00497456,2316.0,2314.9,7.20475857]
[1769963041466,6.7863877,2315.5,2313.9,7.20475857]
[1769963041766,6.46585011,2315.5,2313.4,7.20475857]
[1769963042067,6.39517799,2314.7,2312.7,7.20475857]
[1769963042361,6.39517799,2314.9,2312.7,7.20475857]
[1769963042664,0.21617,2315.1,2312.7,7.20803401]
[1769963043364,0.21613,2315.6,2312.9,7.20475857]
[1769963043662,0.2162,2314.9,2313.1,7.20475857]
[1769963043866,0.21615,2315.5,2313.1,7.20475857]
[1769963044356,0.21615,2315.5,2313.5,3.43679301]
[1769963044558,0.32054759,2315.5,2313.7,7.20475857]
[1769963044771,0.10439759,2315.2,2313.7,7.20475857]
[1769963045064,6.23765587,2315.1,2313.2,7.20475857]
[1769963045261,6.23765587,2315.6,2313.6,7.20475857]
[1769963045465,6.23765587,2315.6,2312.9,3.43679301]
[1769963045466,0.21622,2314.6,2313.1,7.20475857]
[1769963045662,6.23765587,2314.9,2313.1,7.20475857]
[1769963045862,0.32067759,2314.0,2313.0,3.894]
[1769963046063,0.2211237,2314.0,2312.7,0.00327544]
[1769963046264,6.15870596,2314.0,2312.7,0.00327544]
[1769963046562,0.0048437,2314.0,2312.7,0.00327544]
[1769963046758,6.15870596,2314.0,2312.7,0.00327544]
[1769963046960,0.10439759,2313.4,2312.7,0.00327544]
[1769963047165,0.10439759,2312.8,2312.0,3.893]
[1769963047365,0.21635,2313.3,2312.1,7.05955863]
[1769963047563,0.10439759,2313.2,2312.1,7.05955863]
[1769963047767,0.0048437,2314.0,2312.1,7.05955863]
[1769963047966,0.10439759,2313.7,2312.1,7.05955863]
[1769963048170,0.0048437,2314.0,2312.3,7.05955863]
[1769963048368,0.10439759,2313.7,2312.3,7.05955863]
[1769963048561,0.10439759,2313.3,2312.3,7.05955863]
[1769963048764,0.21632,2313.5,2312.3,7.05955863]
[1769963048959,0.0048437,2314.0,2312.3,7.05955863]
[1769963049567,0.21631,2313.7,2312.3,7.05955863]
[1769963049775,0.10439759,2313.3,2312.3,7.05955863]
[1769963049965,6.1932781,2314.0,2312.1,0.00524041]
[1769963049966,0.21636,2313.1,2312.1,0.00524041]
[1769963050374,0.10439759,2312.7,2312.1,0.00524041]
[1769963050664,0.21636,2313.1,2312.1,7.06479904]
[1769963050865,0.0048437,2314.0,2312.1,7.06479904]
[1769963051066,0.0048437,2314.0,2312.7,7.05955863]
[1769963051264,6.25597074,2315.2,2312.6,3.65320301]
[1769963051265,0.21617,2315.2,2313.3,7.05955863]
[1769963051467,0.21618,2315.1,2313.5,7.05955863]
[1769963051664,3.893,2315.9,2313.5,7.05955863]
[1769963051665,6.04464444,2315.2,2313.5,7.05955863]
[1769963051864,6.04464444,2315.1,2313.1,7.05955863]
[1769963052066,6.04464444,2314.6,2312.4,7.05955863]
[1769963052272,0.21628,2314.0,2312.4,7.05955863]
[1769963052571,5.96517263,2314.3,2312.4,7.05955863]
[1769963052869,0.10439759,2313.8,2312.4,7.05955863]
[1769963053372,0.21631,2313.7,2312.4,7.05955863]
[1769963054071,0.10439759,2313.6,2312.4,7.05955863]
[1769963054272,0.21634,2313.4,2312.4,7.05955863]
[1769963055272,0.32073759,2313.4,2312.4,7.05955863]
[1769963055468,0.21628,2314.0,2312.4,7.05955863]
[1769963055668,0.2163,2313.7,2312.4,7.05955863]
[1769963055971,6.12763328,2313.6,2312.3,3.893]
[1769963056162,3.89649895,2314.6,2312.1,0.00524041]
[1769963056163,0.2164,2312.7,2312.1,0.00524041]
[1769963056374,0.00370029,2312.7,2312.1,7.06479904]
[1769963056567,6.1287836,2313.7,2312.1,7.06479904]
[1769963056771,0.21631,2313.7,2312.1,7.06479904]
[1769963057065,6.13248389,2314.5,2312.7,7.05955863]
[1769963057262,3.893,2315.2,2312.7,7.05955863]
[1769963057263,0.2163,2313.7,2312.7,7.05955863]
[1769963057462,0.21626,2314.2,2312.7,7.05955863]
[1769963057668,0.00440989,2314.2,2312.7,7.05955863]
[1769963057874,0.21633,2313.5,2312.7,7.05955863]
[1769963058272,0.32072759,2313.5,2312.7,7.05955863]
[1769963058467,0.10439759,2313.5,2312.7,7.05955863]
[1769963058673,0.21628,2314.0,2312.7,7.05955863]
[1769963058871,0.00440989,2314.2,2312.7,7.05955863]
[1769963059275,0.21628,2314.0,2312.7,7.05955863]
[1769963059474,0.00440989,2314.2,2312.7,7.05955863]
[1769963059973,0.21628,2314.0,2312.7,7.05955863]
[1769963060775,0.00440989,2314.2,2312.7,7.05955863]
[1769963060981,0.00440989,2314.2,2313.1,7.05955863]
[1769963061181,0.21617,2315.2,2313.6,3.43679301]